bitfinex-derivatives/quotes_BTCF0:USTF0_20241104
["timestamp","ask_amount","ask_price","bid_price","bid_amount"]
[1730756314474,0.436207,67241.0,67240.0,0.09550628]
[1730756314780,0.436207,67241.0,67240.0,0.16996134]
[1730756314977,0.436207,67241.0,67240.0,0.07432963]
[1730756315378,0.074408,67240.0,67239.0,0.07432963]
[1730756315575,0.074408,67240.0,67239.0,0.16988259]
[1730756315877,0.074408,67240.0,67239.0,0.07433135]
[1730756316484,0.074408,67240.0,67238.0,0.07433135]
[1730756316675,0.075408,67240.0,67238.0,0.07433135]
[1730756317682,0.074409,67239.0,67238.0,0.07433135]
[1730756318584,0.074409,67239.0,67237.0,0.07433135]
[1730756319376,0.001,67240.0,67238.0,0.09556093]
[1730756319577,0.001,67240.0,67239.0,0.074409]
[1730756319790,0.3608,67241.0,67240.0,0.074408]
[1730756320380,1.16776,67241.0,67240.0,0.07431994]
[1730756320580,0.001,67240.0,67234.0,0.08918449]
[1730756320788,0.074415,67234.0,67233.0,0.08918449]
[1730756320980,0.074415,67234.0,67233.0,0.09556176]
[1730756321183,0.074415,67234.0,67226.0,0.08918449]
[1730756321381,0.3608,67227.0,67226.0,0.16360849]
[1730756321585,0.3608,67227.0,67226.0,0.38402111]
[1730756322086,0.3608,67227.0,67226.0,0.38401694]
[1730756323291,0.3608,67227.0,67226.0,0.09514879]
[1730756323477,0.3608,67227.0,67224.0,0.00223119]
[1730756323677,0.3608,67227.0,67226.0,0.074424]
[1730756323884,0.3618,67227.0,67226.0,0.28886815]
[1730756324079,0.3618,67227.0,67226.0,0.83002012]
[1730756324386,0.3608,67244.0,67234.0,0.074415]
[1730756324689,0.3608,67244.0,67243.0,0.13382449]
[1730756324983,0.3608,67261.0,67243.0,0.38313527]
[1730756325185,0.3608,67269.0,67264.0,0.074382]
[1730756325385,0.3608,67269.0,67265.0,0.05939488]
[1730756325595,0.3608,67277.0,67265.0,0.05939488]
[1730756325782,0.3608,67277.0,67269.0,0.04450659]
[1730756325985,0.3608,67277.0,67256.0,0.08912924]
[1730756325986,0.7216,67270.0,67256.0,0.08912924]
[1730756326197,0.074396,67251.0,67243.0,0.00076]
[1730756326380,0.435196,67251.0,67243.0,0.00076]
[1730756326579,0.435196,67251.0,67237.0,0.08912924]
[1730756326790,0.074398,67250.0,67233.0,0.08912924]
[1730756327087,0.3608,67234.0,67232.0,0.074417]
[1730756327292,0.435216,67234.0,67227.0,0.074422]
[1730756327480,0.3608,67234.0,67224.0,0.00223119]
[1730756327680,0.3608,67234.0,67228.0,0.074421]
[1730756327987,0.3608,67234.0,67233.0,0.001]
[1730756328182,0.435216,67234.0,67233.0,0.001]
[1730756328378,0.435216,67234.0,67224.0,0.00223119]
[1730756328379,1.107,67234.0,67224.0,0.00223119]
[1730756328583,0.074443,67209.0,67205.0,0.08912924]
[1730756328788,0.3608,67207.0,67196.0,0.435257]
[1730756329179,0.435246,67207.0,67196.0,0.435257]
[1730756329381,0.3608,67207.0,67196.0,0.3608]
[1730756329792,0.435246,67207.0,67196.0,0.435257]
[1730756330093,0.3608,67207.0,67196.0,0.435257]
[1730756330287,0.074447,67206.0,67196.0,0.448257]
[1730756330679,0.3608,67199.0,67196.0,0.013]
[1730756331087,0.3608,67199.0,67193.0,1.50084]
[1730756331394,0.074456,67197.0,67196.0,0.009]
[1730756331783,0.3608,67199.0,67196.0,0.009]
[1730756332783,0.3608,67199.0,67198.0,0.074455]
[1730756333981,0.3618,67199.0,67198.0,0.083455]
[1730756334894,0.3618,67199.0,67198.0,0.009]
[1730756335492,0.3608,67199.0,67196.0,0.074457]
[1730756335704,0.436254,67199.0,67198.0,0.01]
[1730756335900,0.074459,67194.0,67193.0,0.00084]
[1730756336109,0.07446,67193.0,67192.0,1e-08]
[1730756336398,0.52094,67193.0,67192.0,1e-08]
[1730756337290,0.07546,67193.0,67192.0,0.01200001]
[1730756337489,0.52194,67193.0,67192.0,0.01200001]
[1730756337700,0.07546,67193.0,67192.0,0.01200001]
[1730756338000,0.52194,67193.0,67192.0,0.01200001]
[1730756338291,0.07546,67193.0,67192.0,0.01200001]
[1730756338595,0.52194,67193.0,67192.0,0.01200001]
[1730756339296,0.52194,67193.0,67192.0,0.012]
[1730756339297,0.001,67193.0,67192.0,0.012]
[1730756339899,0.07546,67193.0,67192.0,0.012]
[1730756340612,0.52194,67193.0,67192.0,0.012]
[1730756340899,0.52194,67193.0,67173.0,0.00223301]
[1730756340900,0.074474,67181.0,67177.0,0.074477]
[1730756341098,0.3608,67178.0,67173.0,0.00223301]
[1730756341995,0.3608,67178.0,67177.0,0.076478]
[1730756342190,0.31608544,67178.0,67177.0,0.076478]
[1730756342588,0.001,67181.0,67180.0,0.074475]
[1730756342800,0.3608,67191.0,67173.0,0.00223301]
[1730756342801,0.3608,67191.0,67188.0,0.074466]
[1730756343188,0.3608,67191.0,67189.0,1.5]
[1730756343898,0.074474,67181.0,67173.0,0.00423301]
[1730756344105,0.3608,67175.0,67173.0,0.00423301]
[1730756344301,0.3608,67176.0,67173.0,0.00423301]
[1730756344508,0.074481,67174.0,67173.0,0.00423301]
[1730756344999,0.074481,67174.0,67173.0,0.00223301]
[1730756345503,0.4466,67174.0,67149.0,0.3608]
[1730756345798,0.4466,67174.0,67158.0,0.074499]
[1730756345799,0.3608,67159.0,67158.0,0.074499]
[1730756346903,0.3608,67166.0,67149.0,0.3608]
[1730756347103,0.3608,67166.0,67158.0,0.074499]
[1730756347493,0.3608,67166.0,67155.0,0.074502]
[1730756347802,0.074502,67156.0,67149.0,0.3608]
[1730756348195,0.3608,67160.0,67151.0,0.074507]
[1730756348392,0.001,67159.0,67152.0,0.074506]
[1730756348896,0.001,67159.0,67141.0,0.074517]
[1730756348897,0.074507,67152.0,67141.0,0.074517]
[1730756349099,0.3608,67147.0,67142.0,1.5]
[1730756350101,0.3608,67147.0,67142.0,1.574516]
[1730756350605,0.3608,67147.0,67142.0,1.5]
[1730756350800,0.001,67152.0,67151.0,0.074507]
[1730756351107,0.3608,67176.0,67175.0,0.07448]
[1730756351596,0.3608,67176.0,67175.0,1.57448]
[1730756352607,0.3608,67176.0,67166.0,0.3608]
[1730756352805,0.3608,67176.0,67161.0,0.00223335]
[1730756352806,0.3608,67167.0,67161.0,0.00223335]
[1730756353310,0.074495,67162.0,67161.0,0.00223335]
[1730756355620,0.3608,67163.0,67162.0,0.074495]
[1730756355910,0.074495,67162.0,67161.0,0.00223335]
[1730756356110,0.001,67162.0,67161.0,0.00223335]
[1730756356605,0.001,67162.0,67161.0,0.07672935]
[1730756357118,0.3608,67181.0,67180.0,0.074475]
[1730756357305,0.07669772,67190.0,67161.0,1.17569896]
[1730756357306,0.00223372,67190.0,67173.0,0.3608]
[1730756357501,0.00223372,67190.0,67181.0,0.07378213]
[1730756357708,0.00223372,67190.0,67186.0,0.074467]
[1730756357911,0.3608,67187.0,67180.0,1.57462213]
[1730756358099,0.3608,67187.0,67180.0,1.575315]
[1730756358300,0.3608,67187.0,67180.0,1.5]
[1730756358612,0.3608,67181.0,67180.0,1.5]
[1730756358912,0.3608,67181.0,67176.0,0.07378213]
[1730756359211,0.074478,67177.0,67176.0,0.07378213]
[1730756359604,0.521078,67177.0,67176.0,0.07378213]
[1730756360005,0.4466,67177.0,67161.0,0.00223335]
[1730756360210,0.435295,67162.0,67161.0,0.00223335]
[1730756360614,0.074501,67156.0,67155.0,0.08912924]
[1730756360911,0.435301,67156.0,67155.0,0.08912924]
[1730756361119,0.882021,67156.0,67155.0,0.08912924]
[1730756361914,1.51405231,67156.0,67155.0,0.08912924]
[1730756362414,0.074513,67146.0,67145.0,0.1040479]
[1730756362617,0.435313,67146.0,67145.0,0.1040479]
[1730756362916,0.435313,67146.0,67145.0,0.1785619]
[1730756363120,0.435313,67146.0,67145.0,0.1040479]
[1730756363412,0.882113,67146.0,67145.0,0.1040479]
[1730756363601,0.3608,67146.0,67145.0,0.1040479]
[1730756363917,0.3608,67146.0,67145.0,0.1785619]
[1730756365007,0.3608,67146.0,67145.0,0.074514]
[1730756365619,0.3618,67146.0,67145.0,0.074514]
[1730756367018,0.001,67146.0,67145.0,0.074514]
[1730756367224,0.3608,67156.0,67155.0,0.074503]
[1730756368321,0.3608,67156.0,67143.0,0.33103131]
[1730756368523,0.3618,67156.0,67143.0,0.33103131]
[1730756368818,0.3618,67156.0,67142.0,0.3608]
[1730756369125,0.3618,67156.0,67155.0,0.074503]
[1730756370115,0.3608,67156.0,67155.0,0.074503]
[1730756370416,0.3618,67156.0,67155.0,0.074503]
[1730756371013,0.001,67156.0,67155.0,0.09522335]
[1730756371321,0.001,67156.0,67155.0,0.16972635]
[1730756371514,0.3618,67156.0,67155.0,0.09522335]
[1730756371716,0.3618,67156.0,67148.0,1.5]
[1730756371922,0.3618,67156.0,67152.0,0.074505]
[1730756373012,0.3618,67156.0,67153.0,0.09503482]
[1730756373213,0.3618,67156.0,67154.0,0.09505427]
[1730756373418,0.3618,67156.0,67148.0,1.5008]
[1730756373419,0.3608,67156.0,67155.0,0.074503]
[1730756373713,0.3618,67156.0,67155.0,0.16957408]
[1730756374223,0.002235,67160.0,67155.0,0.09507108]
[1730756374426,0.001,67156.0,67155.0,0.074503]
[1730756374721,0.001,67156.0,67155.0,0.09506683]
[1730756374722,0.075501,67156.0,67155.0,0.09506683]
[1730756374926,0.075502,67156.0,67139.0,0.4648479]
[1730756375136,0.074502,67156.0,67149.0,0.074508]
[1730756375321,0.3608,67152.0,67150.0,0.09530939]
[1730756375621,0.3608,67152.0,67151.0,0.09530939]
[1730756377521,0.074507,67151.0,67135.0,0.00223375]
[1730756377723,0.3608,67137.0,67136.0,0.09544339]
[1730756378121,0.36232,67143.0,67136.0,0.09544339]
[1730756378320,0.36232,67143.0,67137.0,0.09544339]
[1730756378629,0.3608,67143.0,67141.0,0.074517]
[1730756378821,0.3608,67143.0,67137.0,0.074522]
[1730756379014,0.3608,67143.0,67138.0,0.1702416]
[1730756379221,0.3608,67143.0,67140.0,0.074519]
[1730756379525,0.3608,67143.0,67141.0,0.0957206]
[1730756379526,0.074517,67142.0,67141.0,0.0957206]
[1730756379725,0.7216,67143.0,67135.0,0.00223375]
[1730756379920,0.435324,67136.0,67135.0,0.00223375]
[1730756380120,0.435324,67136.0,67135.0,0.09828703]
[1730756380520,0.3608,67136.0,67135.0,0.09820698]
[1730756380719,0.001,67142.0,67135.0,0.09818328]
[1730756380934,0.001,67142.0,67139.0,0.07452]
[1730756381528,0.3608,67143.0,67139.0,0.07452]
[1730756382318,0.3608,67143.0,67135.0,0.00223375]
[1730756382319,0.435316,67143.0,67135.0,0.07675775]
[1730756382524,0.435316,67143.0,67137.0,0.074522]
[1730756382727,0.435316,67143.0,67138.0,0.095881]
[1730756382930,0.3608,67143.0,67139.0,0.09585477]
[1730756383128,0.3608,67143.0,67138.0,0.074521]
[1730756383129,0.001,67142.0,67138.0,0.074521]
[1730756383328,0.001,67142.0,67139.0,0.17030654]
[1730756383629,0.001,67142.0,67141.0,0.074518]
[1730756383827,0.001,67143.0,67141.0,0.09578654]
[1730756384018,0.001,67143.0,67142.0,0.17030254]
[1730756384223,0.001,67143.0,67142.0,0.25931455]
[1730756384425,0.001,67143.0,67142.0,0.17030254]
[1730756384623,0.3608,67146.0,67143.0,0.074515]
[1730756384823,0.3608,67146.0,67144.0,0.16996937]
[1730756385031,0.3608,67146.0,67145.0,0.09545537]
[1730756385529,0.074516,67143.0,67137.0,0.074522]
[1730756385828,0.074516,67143.0,67135.0,0.09124576]
[1730756385829,0.07452,67139.0,67138.0,0.09576393]
[1730756386027,0.07452,67139.0,67127.0,1.55848]
[1730756386028,0.3608,67140.0,67131.0,0.08901201]
[1730756386233,0.3608,67140.0,67132.0,0.18504787]
[1730756386419,0.3608,67140.0,67133.0,0.09603586]
[1730756386732,0.3608,67140.0,67138.0,0.074521]
[1730756386932,0.3608,67140.0,67139.0,0.09596608]
[1730756387137,0.3608,67140.0,67139.0,0.07452]
[1730756387336,0.3608,67140.0,67139.0,0.17059137]
[1730756387634,0.435319,67140.0,67139.0,0.09600141]
[1730756387829,0.074523,67137.0,67132.0,0.16354001]
[1730756388029,0.3608,67134.0,67133.0,0.09613538]
[1730756388428,0.3618,67140.0,67133.0,0.09613538]
[1730756388624,0.3618,67140.0,67136.0,0.16368974]
[1730756388833,0.3618,67140.0,67137.0,0.09613538]
[1730756389035,0.3618,67140.0,67138.0,0.09613538]
[1730756389242,0.435319,67140.0,67132.0,0.13397074]
[1730756389438,0.435319,67140.0,67132.0,0.074528]
[1730756389439,0.3608,67134.0,67132.0,0.074528]
[1730756389644,0.3608,67134.0,67133.0,0.074527]
[1730756390244,0.3618,67140.0,67134.0,0.074525]
[1730756391041,0.3608,67140.0,67134.0,0.074525]
[1730756391851,0.435319,67140.0,67134.0,0.074525]
[1730756392036,0.074521,67139.0,67134.0,0.074525]
[1730756393655,0.074522,67138.0,67132.0,0.074528]
[1730756393949,0.001,67139.0,67131.0,0.05944274]
[1730756394151,0.001,67139.0,67138.0,0.074521]
[1730756394353,0.001,67139.0,67131.0,0.05944274]
[1730756394557,0.074525,67135.0,67131.0,0.05944274]
[1730756394746,0.001,67139.0,67131.0,0.05944274]
[1730756394747,0.074526,67134.0,67131.0,0.05944274]
[1730756394947,0.3608,67137.0,67129.0,0.05944274]
[1730756395146,0.3608,67137.0,67124.0,0.05944274]
[1730756395147,0.3608,67130.0,67124.0,0.05944274]
[1730756395344,0.3608,67125.0,67119.0,0.05944274]
[1730756395553,0.07454,67121.0,67115.0,0.05944274]
[1730756395857,0.3608,67118.0,67113.0,0.05944274]
[1730756396155,0.074529,67132.0,67113.0,0.05944274]
[1730756396156,0.3608,67131.0,67118.0,0.074543]
[1730756396355,0.3608,67131.0,67130.0,0.07453]
[1730756397454,0.3618,67131.0,67117.0,0.00223453]
[1730756397660,0.3618,67131.0,67128.0,0.074532]
[1730756398051,0.3618,67131.0,67117.0,0.07677853]
[1730756398052,0.3618,67131.0,67117.0,0.00223453]
[1730756398356,0.3608,67125.0,67120.0,0.07454]
[1730756398757,0.3608,67125.0,67123.0,0.074538]
[1730756399059,0.3608,67125.0,67124.0,0.074537]
[1730756399649,0.001,67125.0,67124.0,0.074537]
[1730756400458,0.3608,67131.0,67117.0,0.00223453]
[1730756400651,0.074531,67130.0,67123.0,0.074538]
[1730756400961,0.074531,67130.0,67125.0,0.074535]
[1730756401158,0.3608,67131.0,67125.0,1.5]
[1730756401361,0.3608,67131.0,67120.0,0.3608]
[1730756401565,0.3608,67131.0,67130.0,0.07453]
[1730756401767,0.3608,67138.0,67135.0,0.074524]
[1730756402763,0.3608,67138.0,67136.0,0.074523]
[1730756402964,0.3608,67138.0,67130.0,0.3608]
[1730756403162,0.3608,67138.0,67123.0,1.563]
[1730756403463,0.3618,67138.0,67130.0,0.074529]
[1730756403656,0.3618,67138.0,67123.0,1.563]
[1730756403657,0.57553461,67132.0,67123.0,0.00076]
[1730756403961,0.435337,67124.0,67123.0,0.00076]
[1730756404161,0.074544,67118.0,67117.0,0.00223453]
[1730756404363,0.435344,67118.0,67117.0,0.00223453]
[1730756404963,0.3608,67124.0,67117.0,0.00223453]
[1730756405254,0.3608,67124.0,67119.0,0.05944274]
[1730756405454,0.074541,67121.0,67117.0,0.00223453]
[1730756405661,0.3608,67118.0,67117.0,0.00223453]
[1730756406373,0.3608,67118.0,67117.0,0.07677953]
[1730756406661,0.3608,67118.0,67117.0,0.00223453]
[1730756406857,0.3618,67118.0,67117.0,0.00223453]
[1730756407058,0.436344,67118.0,67117.0,0.00223453]
[1730756407258,0.3618,67118.0,67117.0,0.00223453]
[1730756407458,0.3618,67118.0,67117.0,0.07677953]
[1730756407656,0.3618,67118.0,67117.0,0.00223453]
[1730756408057,0.3618,67118.0,67117.0,0.07677953]
[1730756408572,0.3618,67118.0,67117.0,0.00223453]
[1730756408961,0.436344,67118.0,67117.0,0.00223453]
[1730756409564,0.65107861,67118.0,67117.0,0.00223453]
[1730756410769,0.57653461,67118.0,67117.0,0.00223453]
[1730756410968,0.57653461,67118.0,67115.0,0.074547]
[1730756411269,0.3618,67118.0,67111.0,0.05944003]
[1730756411572,0.21473461,67117.0,67111.0,0.05944003]
[1730756411771,0.074547,67116.0,67110.0,0.13399203]
[1730756412172,0.074547,67116.0,67104.0,0.38456733]
[1730756412173,0.21473461,67117.0,67113.0,0.074549]
[1730756412370,0.3618,67118.0,67117.0,0.074545]
[1730756412874,0.3608,67118.0,67117.0,1.574545]
[1730756413375,0.3608,67118.0,67117.0,0.074545]
[1730756413568,0.3608,67118.0,67111.0,0.05944003]
[1730756413569,0.3608,67133.0,67125.0,0.074536]
[1730756413769,0.074529,67131.0,67125.0,0.074536]
[1730756413980,0.3608,67133.0,67126.0,0.074535]
[1730756414174,0.3608,67133.0,67125.0,1.50076]
[1730756414175,0.07453,67131.0,67125.0,1.50076]
[1730756414474,0.07453,67131.0,67122.0,0.074538]
[1730756414475,0.074532,67129.0,67121.0,0.05938649]
[1730756414678,0.3608,67125.0,67122.0,0.074539]
[1730756414865,0.3608,67125.0,67114.0,0.07430152]
[1730756414866,0.3608,67125.0,67123.0,0.074538]
[1730756415372,0.074541,67121.0,67117.0,0.05938649]
[1730756415576,0.3608,67118.0,67115.0,0.00076]
[1730756415772,0.3608,67118.0,67114.0,0.074548]
[1730756416370,0.3608,67118.0,67111.0,1.5]
[1730756416371,0.3608,67118.0,67111.0,0.00076]
[1730756416668,0.3608,67118.0,67110.0,0.05938649]
[1730756416863,0.3608,67118.0,67111.0,0.05938649]
[1730756417069,0.3608,67118.0,67116.0,0.074545]
[1730756417363,0.3608,67118.0,67117.0,0.074545]
[1730756417566,0.3608,67119.0,67117.0,0.074545]
[1730756418775,0.3608,67119.0,67118.0,0.074544]
[1730756419776,0.07453,67131.0,67117.0,0.07430152]
[1730756420076,0.36224,67132.0,67125.0,0.05943365]
[1730756420280,0.074533,67128.0,67126.0,0.05943365]
[1730756420580,0.074535,67126.0,67123.0,0.05943365]
[1730756420767,0.3608,67129.0,67123.0,0.05944005]
[1730756420967,0.074541,67120.0,67119.0,0.05944005]
[1730756421394,0.074541,67120.0,67097.0,0.00223551]
[1730756421395,0.5902222,67120.0,67109.0,0.05944005]
[1730756421683,0.074551,67112.0,67110.0,0.05944005]
[1730756421886,0.3608,67111.0,67110.0,0.13399205]
[1730756422175,0.3608,67122.0,67110.0,0.14885352]
[1730756422386,0.07454,67121.0,67119.0,0.05944478]
[1730756422568,0.001,67126.0,67119.0,0.05944478]
[1730756422770,0.001,67126.0,67125.0,0.13398092]
[1730756422967,0.001,67126.0,67125.0,0.074536]
[1730756423174,0.074528,67132.0,67125.0,0.1707654]
[1730756423476,0.3608,67129.0,67125.0,0.07430794]
[1730756423675,0.3608,67129.0,67108.0,0.074555]
[1730756423676,0.3608,67129.0,67124.0,0.07430794]
[1730756423874,0.074536,67125.0,67124.0,0.07430794]
[1730756424278,0.521456,67125.0,67124.0,0.07430794]
[1730756424677,0.521456,67125.0,67118.0,0.05947274]
[1730756424876,0.521456,67125.0,67108.0,0.08916674]
[1730756424877,0.3608,67119.0,67117.0,0.05947292]
[1730756425178,0.074545,67117.0,67116.0,0.05947292]
[1730756425379,0.435343,67119.0,67115.0,0.074546]
[1730756425683,0.435344,67118.0,67115.0,0.0594769]
[1730756425875,0.3608,67118.0,67115.0,0.05947759]
[1730756426072,0.3608,67118.0,67115.0,0.0594772]
[1730756426271,0.074546,67117.0,67116.0,0.05947214]
[1730756426474,0.074546,67117.0,67116.0,0.13401781]
[1730756426475,0.001,67117.0,67116.0,0.13401781]
[1730756427074,0.3608,67118.0,67116.0,0.05947181]
[1730756427277,0.3618,67118.0,67117.0,0.074545]
[1730756427681,0.001,67118.0,67117.0,0.074545]
[1730756428680,0.2002,67140.0,67118.0,0.074543]
[1730756428681,0.3608,67132.0,67118.0,0.074543]
[1730756428878,0.3608,67132.0,67117.0,0.074545]
[1730756429072,0.3608,67132.0,67118.0,0.074543]
[1730756429285,0.3608,67132.0,67131.0,0.074529]
[1730756429988,0.3608,67139.0,67134.0,0.074526]
[1730756430283,0.3608,67152.0,67151.0,0.074507]
[1730756430489,0.00223437,67167.0,67149.0,0.3608]
[1730756430490,0.36303437,67167.0,67149.0,0.3608]
[1730756430676,0.36303437,67167.0,67142.0,0.00223402]
[1730756430677,0.3608,67150.0,67142.0,0.00223402]
[1730756430984,0.3608,67154.0,67142.0,0.00223402]
[1730756431187,0.3608,67154.0,67152.0,0.074506]
[1730756431383,0.3608,67154.0,67153.0,0.074505]
[1730756431581,0.3608,67154.0,67142.0,0.00223402]
[1730756431889,0.435304,67154.0,67144.0,0.074514]
[1730756432185,0.435304,67154.0,67151.0,0.074506]
[1730756432186,0.3608,67154.0,67151.0,0.074506]
[1730756432388,0.3608,67154.0,67142.0,0.00223402]
[1730756432389,0.3608,67155.0,67142.0,0.00223402]
[1730756432683,0.3608,67161.0,67142.0,0.07675002]
[1730756432684,0.3608,67153.0,67142.0,0.07675002]
[1730756432881,0.3608,67153.0,67142.0,0.00223402]
[1730756433075,0.3608,67153.0,67152.0,0.074506]
[1730756433278,0.3608,67153.0,67147.0,0.074511]
[1730756433680,0.002,67154.0,67145.0,0.3608]
[1730756433885,0.002,67154.0,67153.0,0.074505]
[1730756434077,0.3608,67161.0,67145.0,0.3608]
[1730756434284,0.001,67153.0,67152.0,0.074506]
[1730756435389,0.00223437,67167.0,67152.0,0.44676]
[1730756435695,0.00223437,67167.0,67164.0,0.074492]
[1730756436284,0.00223437,67167.0,67166.0,0.07449]
[1730756436680,0.00223437,67167.0,67156.0,0.074501]
[1730756436880,0.3608,67164.0,67156.0,0.074501]
[1730756437085,0.3608,67164.0,67145.0,0.21480992]
[1730756437285,0.3608,67164.0,67156.0,0.0745]
[1730756437797,0.3608,67157.0,67151.0,0.074507]
[1730756438589,0.3608,67157.0,67153.0,0.074504]
[1730756438889,0.3608,67157.0,67144.0,0.38447232]
[1730756438890,0.3608,67157.0,67147.0,0.01]
[1730756439093,0.435301,67157.0,67147.0,0.01]
[1730756439283,0.435301,67157.0,67147.0,0.08451]
[1730756439595,0.435301,67157.0,67144.0,0.3608]
[1730756439796,0.436301,67157.0,67153.0,0.006]
[1730756439997,0.074503,67155.0,67153.0,0.006]
[1730756440190,0.3618,67157.0,67153.0,0.006]
[1730756440392,0.001,67157.0,67153.0,0.006]
[1730756440589,0.3608,67155.0,67153.0,0.006]
[1730756440985,0.3608,67155.0,67152.0,0.074505]
[1730756441291,0.001,67157.0,67155.0,0.074502]
[1730756441795,0.001,67157.0,67147.0,0.01]
[1730756441988,0.3618,67157.0,67147.0,0.01]
[1730756442193,0.07451,67148.0,67147.0,0.01]
[1730756442687,0.074516,67143.0,67142.0,0.00223402]
[1730756442888,0.074522,67138.0,67120.0,0.20179438]
[1730756443093,0.3608,67143.0,67121.0,0.08348516]
[1730756443094,0.3608,67134.0,67121.0,0.08348516]
[1730756443296,0.3608,67134.0,67133.0,0.074527]
[1730756443492,0.3608,67134.0,67121.0,0.08348516]
[1730756443693,0.3608,67134.0,67133.0,0.074527]
[1730756444490,0.001,67134.0,67133.0,0.074527]
[1730756444702,0.3608,67143.0,67133.0,0.882207]
[1730756444999,0.3608,67143.0,67133.0,0.3608]
[1730756445190,0.074519,67141.0,67125.0,0.074535]
[1730756445391,0.3608,67137.0,67124.0,0.37056]
[1730756445594,0.3608,67130.0,67124.0,0.3698]
[1730756445796,0.3608,67130.0,67126.0,0.074535]
[1730756446194,0.3608,67130.0,67124.0,0.3608]
[1730756446593,0.3608,67130.0,67120.0,0.00223438]
[1730756446902,0.3608,67130.0,67106.0,0.3608]
[1730756446903,0.3608,67121.0,67103.0,0.04437323]
[1730756447094,0.3608,67121.0,67104.0,0.074559]
[1730756447095,0.3608,67110.0,67104.0,0.074559]
[1730756447403,0.3608,67110.0,67105.0,1.5]
[1730756447605,0.3608,67110.0,67107.0,0.074556]
[1730756447799,0.3608,67110.0,67105.0,1.50084]
[1730756448101,0.3608,67110.0,67109.0,0.074554]
[1730756448405,0.3608,67110.0,67109.0,0.28936392]
[1730756448999,0.07453,67131.0,67109.0,0.73640392]
[1730756449201,0.3608,67127.0,67120.0,0.074541]
[1730756449397,0.3608,67127.0,67126.0,0.074535]
[1730756449599,0.3608,67142.0,67124.0,0.074536]
[1730756449897,0.3608,67142.0,67135.0,0.074524]
[1730756450205,0.3608,67142.0,67129.0,0.21480992]
[1730756450401,0.3608,67142.0,67131.0,0.074529]
[1730756450599,0.3608,67142.0,67134.0,0.074526]
[1730756451300,0.435317,67142.0,67134.0,0.074526]
[1730756451502,0.3608,67146.0,67129.0,0.21480992]
[1730756451694,0.074516,67143.0,67134.0,0.074526]
[1730756452401,0.002,67142.0,67134.0,0.074526]
[1730756452709,0.002,67142.0,67135.0,0.074525]
[1730756452905,0.002,67142.0,67129.0,0.36156]
[1730756452906,0.002,67142.0,67129.0,0.3608]
[1730756453203,0.003,67143.0,67129.0,0.3608]
[1730756453710,0.003,67143.0,67141.0,0.074518]
[1730756454003,0.3608,67151.0,67129.0,0.3608]
[1730756454004,0.002,67142.0,67129.0,0.3608]
[1730756454198,0.074523,67137.0,67129.0,0.435331]
[1730756454401,0.074523,67137.0,67123.0,0.38464926]
[1730756454610,0.3608,67133.0,67125.0,0.074535]
[1730756455005,0.3608,67133.0,67127.0,0.074533]
[1730756456206,0.3608,67133.0,67123.0,0.3608]
[1730756456411,0.3618,67133.0,67128.0,0.074532]
[1730756457098,0.3618,67133.0,67128.0,0.21480992]
[1730756457399,0.3618,67133.0,67132.0,0.074528]
[1730756457910,0.001,67133.0,67132.0,0.074528]
[1730756458414,0.3608,67144.0,67128.0,0.21480992]
[1730756458415,0.3608,67144.0,67134.0,0.074525]
[1730756458708,0.3608,67144.0,67124.0,0.00025]
[1730756458709,0.3608,67136.0,67124.0,0.00025]
[1730756459023,0.435336,67125.0,67124.0,0.00025]
[1730756459496,0.882256,67125.0,67124.0,0.00025]
[1730756459812,0.074541,67120.0,67119.0,0.00223477]
[1730756461305,0.074541,67120.0,67102.0,0.07456]
[1730756461306,0.44696,67120.0,67102.0,0.07456]
[1730756461609,0.44696,67120.0,67100.0,0.1]
[1730756461610,0.3608,67103.0,67100.0,0.1]
[1730756461806,0.3608,67103.0,67100.0,0.174563]
[1730756462008,0.3608,67103.0,67102.0,0.074561]
[1730756462704,0.3608,67103.0,67102.0,0.084561]
[1730756462903,0.3608,67103.0,67102.0,0.01]
[1730756463605,0.43536,67103.0,67102.0,0.01]
[1730756464111,0.3608,67103.0,67102.0,0.01]
[1730756464422,0.001,67103.0,67102.0,0.084561]
[1730756464909,0.001,67103.0,67102.0,0.01]
[1730756466205,0.3618,67103.0,67102.0,0.01]
[1730756466710,0.43636,67103.0,67102.0,0.01]
[1730756468310,0.88344,67103.0,67102.0,0.01]
[1730756468811,0.80888,67103.0,67100.0,0.1]
[1730756469012,0.074562,67101.0,67100.0,0.1]
[1730756469317,0.074562,67101.0,67088.0,0.04437323]
[1730756469518,0.074562,67101.0,67076.0,0.3608]
[1730756469519,0.3608,67064.0,67055.0,0.004]
[1730756469706,0.3608,67046.0,67035.0,0.00084]
[1730756470009,0.3608,67036.0,67020.0,1.5]
[1730756470217,0.3608,67021.0,67009.0,0.02375488]
[1730756470420,0.7216,67010.0,67009.0,0.074665]
[1730756470717,0.93640992,67010.0,67006.0,0.07690655]
[1730756471010,0.3608,67010.0,67009.0,0.074665]
[1730756471201,0.3608,67010.0,67006.0,0.00223855]
[1730756471407,0.3608,67007.0,67006.0,0.00123855]
[1730756471806,0.3608,67007.0,67000.0,0.1]
[1730756471807,0.3608,67007.0,67001.0,0.074673]
[1730756472011,0.3608,67007.0,67000.0,0.1]
[1730756472210,0.3608,67001.0,67000.0,0.174674]
[1730756472398,0.31597514,67001.0,67000.0,0.174674]
[1730756472603,0.31597514,67001.0,67000.0,0.1]
[1730756473015,0.31497514,67001.0,67000.0,0.1]
[1730756473409,0.38964914,67001.0,67000.0,0.1]
[1730756473611,0.83740914,67001.0,67000.0,0.1]
[1730756473806,1.13740914,67001.0,66980.0,4.46354485]